[Event "Titled Tuesday Blitz December 06 Late 2022"]
[White "Milikow, Yoav"]
[Black "Winterberg, Lukas"]
[WhiteFideId "2822237"]
[BlackFideId "24622702"]
[WhiteElo "2789"]
[BlackElo "2471"]
[Result "1-0"]
[Round "03"]
[TimeControl "180+1"]
[Date "2022.12.07"]
[WhiteClock "0:00:05"]
[BlackClock "0:00:05"]

1. d4 {[%clk 0:03:00]}  Nf6 {[%clk 0:02:58]} 2. c4 {[%clk 0:03:01]}  e6 {[%clk 0:02:59]} 3. Nc3 {[%clk 0:02:57]}  d5 {[%clk 0:03:00]} 4. Nf3 {[%clk 0:02:57]}  Be7 {[%clk 0:03:00]} 5. g3 {[%clk 0:02:54]}  O-O {[%clk 0:03:00]} 6. Bg2 {[%clk 0:02:55]}  b6 {[%clk 0:02:59]} 7. O-O {[%clk 0:02:54]}  Bb7 {[%clk 0:02:59]} 8. Ne5 {[%clk 0:02:54]}  Nbd7 {[%clk 0:02:57]} 9. cxd5 {[%clk 0:02:36]}  Nxd5 {[%clk 0:02:56]} 10. Nxd5 {[%clk 0:02:35]}  exd5 {[%clk 0:02:47]} 11. Bf4 {[%clk 0:02:29]}  c5 {[%clk 0:02:39]} 12. dxc5 {[%clk 0:02:22]}  Nxe5 {[%clk 0:02:31]} 13. Bxe5 {[%clk 0:02:20]}  bxc5 {[%clk 0:02:32]} 14. Qb3 {[%clk 0:02:14]}  Qd7 {[%clk 0:02:17]} 15. Rfd1 {[%clk 0:02:12]}  Rfd8 {[%clk 0:02:16]} 16. Rac1 {[%clk 0:01:52]}  Rac8 {[%clk 0:02:11]} 17. Qa3 {[%clk 0:01:32]}  Ba8 {[%clk 0:02:02]} 18. Qa5 {[%clk 0:01:28]}  h5 {[%clk 0:01:55]} 19. h4 {[%clk 0:01:26]}  Qe6 {[%clk 0:01:45]} 20. Bf4 {[%clk 0:01:18]}  Qb6 {[%clk 0:01:44]} 21. Qd2 {[%clk 0:01:10]}  Bf6 {[%clk 0:01:26]} 22. b3 {[%clk 0:01:06]}  c4 {[%clk 0:01:27]} 23. bxc4 {[%clk 0:01:05]}  dxc4 {[%clk 0:01:25]} 24. Qc2 {[%clk 0:01:00]}  Bxg2 {[%clk 0:01:25]} 25. Kxg2 {[%clk 0:01:01]}  c3 {[%clk 0:01:14]} 26. e4 {[%clk 0:00:52]}  Bd4 {[%clk 0:01:04]} 27. Qe2 {[%clk 0:00:47]}  g6 {[%clk 0:00:59]} 28. Rd3 {[%clk 0:00:46]}  Bg7 {[%clk 0:00:55]} 29. Rf3 {[%clk 0:00:41]}  Qb2 {[%clk 0:00:48]} 30. Rc2 {[%clk 0:00:38]}  Qb1 {[%clk 0:00:47]} 31. Bc1 {[%clk 0:00:30]}  Bd4 {[%clk 0:00:37]} 32. e5 {[%clk 0:00:29]}  Re8 {[%clk 0:00:33]} 33. Bf4 {[%clk 0:00:29]}  Bxe5 {[%clk 0:00:29]} 34. Re3 {[%clk 0:00:23]}  Rc5 {[%clk 0:00:20]} 35. Bxe5 {[%clk 0:00:16]}  Rexe5 {[%clk 0:00:19]} 36. Rcxc3 {[%clk 0:00:15]}  Rxc3 {[%clk 0:00:16]} 37. Rxe5 {[%clk 0:00:16]}  Rc1 {[%clk 0:00:17]} 38. Re8+ {[%clk 0:00:16]}  Kh7 {[%clk 0:00:17]} 39. Kf3 {[%clk 0:00:06]}  Rc2 {[%clk 0:00:08]} 40. Qe5 {[%clk 0:00:06]}  Qb7+ {[%clk 0:00:07]} 41. Ke3 {[%clk 0:00:04]}  Qb6+ {[%clk 0:00:05]} 42. Kd3 {[%clk 0:00:05]} 1-0


[Site "https://www.chess.com"]

[Event "Titled Tuesday Blitz December 06 Late 2022"]
[White "Moroni, Luca Jr"]
[Black "Kleiman, Jake"]
[WhiteFideId "865834"]
[BlackFideId "2020041"]
[WhiteElo "2573"]
[BlackElo "2580"]
[Result "0-1"]
[Round "03"]
[TimeControl "180+1"]
[Date "2022.12.06"]
[WhiteClock "0:01:05"]
[BlackClock "0:00:29"]

1. d4 {[%clk 0:03:00]}  Nf6 {[%clk 0:02:56]} 2. Bf4 {[%clk 0:03:00]}  e6 {[%clk 0:02:57]} 3. e3 {[%clk 0:03:00]}  d5 {[%clk 0:02:57]} 4. Nf3 {[%clk 0:03:00]}  Bd6 {[%clk 0:02:55]} 5. Nbd2 {[%clk 0:03:00]}  O-O {[%clk 0:02:55]} 6. Bd3 {[%clk 0:03:00]}  b6 {[%clk 0:02:56]} 7. Qe2 {[%clk 0:02:58]}  a5 {[%clk 0:02:56]} 8. Ne5 {[%clk 0:02:55]}  Ba6 {[%clk 0:02:56]} 9. Bxa6 {[%clk 0:02:52]}  Nxa6 {[%clk 0:02:55]} 10. c3 {[%clk 0:02:52]}  Nb8 {[%clk 0:02:53]} 11. h4 {[%clk 0:02:51]}  c6 {[%clk 0:02:51]} 12. g4 {[%clk 0:02:49]}  Qc7 {[%clk 0:02:49]} 13. h5 {[%clk 0:02:40]}  Nfd7 {[%clk 0:02:48]} 14. Ndf3 {[%clk 0:02:36]}  f6 {[%clk 0:02:45]} 15. Nxd7 {[%clk 0:02:34]}  Nxd7 {[%clk 0:02:46]} 16. Bxd6 {[%clk 0:02:33]}  Qxd6 {[%clk 0:02:47]} 17. O-O-O {[%clk 0:02:33]}  b5 {[%clk 0:02:37]} 18. g5 {[%clk 0:02:30]}  f5 {[%clk 0:02:35]} 19. Kb1 {[%clk 0:02:27]}  c5 {[%clk 0:02:21]} 20. dxc5 {[%clk 0:02:24]}  Nxc5 {[%clk 0:02:14]} 21. Qxb5 {[%clk 0:02:18]}  Rfb8 {[%clk 0:02:05]} 22. Qe2 {[%clk 0:02:18]}  Na4 {[%clk 0:02:06]} 23. Ka1 {[%clk 0:02:11]}  Rxb2 {[%clk 0:02:03]} 24. Rd2 {[%clk 0:02:10]}  Rab8 {[%clk 0:01:44]} 25. Rxb2 {[%clk 0:02:02]}  Rxb2 {[%clk 0:01:44]} 26. Qxb2 {[%clk 0:01:59]}  Nxb2 {[%clk 0:01:45]} 27. Kxb2 {[%clk 0:02:00]}  Qb6+ {[%clk 0:01:37]} 28. Kc2 {[%clk 0:01:59]}  Qb5 {[%clk 0:01:26]} 29. Nd4 {[%clk 0:01:58]}  Qc4 {[%clk 0:01:19]} 30. Rb1 {[%clk 0:01:52]}  e5 {[%clk 0:01:03]} 31. Rb8+ {[%clk 0:01:48]}  Kf7 {[%clk 0:01:02]} 32. Rb7+ {[%clk 0:01:46]}  Ke8 {[%clk 0:01:02]} 33. Ne6 {[%clk 0:01:41]}  d4 {[%clk 0:00:34]} 34. Nxg7+ {[%clk 0:01:25]}  Kd8 {[%clk 0:00:34]} 35. exd4 {[%clk 0:01:10]}  exd4 {[%clk 0:00:32]} 36. Nxf5 {[%clk 0:01:08]}  Qxc3+ {[%clk 0:00:31]} 37. Kd1 {[%clk 0:01:06]}  Qf3+ {[%clk 0:00:29]} 38. Ke1 {[%clk 0:01:05]}  Qxb7 {[%clk 0:00:30]} 39. g6 {[%clk 0:01:04]}  hxg6 {[%clk 0:00:30]} 40. hxg6 {[%clk 0:01:05]}  Qe4+ {[%clk 0:00:29]} 0-1


[Site "https://www.chess.com"]

[Event "Titled Tuesday Blitz December 06 Late 2022"]
[White "Pakleza, Zbigniew"]
[Black "Kaplan, Avi Harrison"]
[WhiteFideId "1119290"]
[BlackFideId "30934559"]
[WhiteElo "2410"]
[BlackElo "1983"]
[Result "1-0"]
[Round "03"]
[TimeControl "180+1"]
[Date "2022.12.07"]
[WhiteClock "0:00:10"]
[BlackClock "0:00:05"]

1. d4 {[%clk 0:03:00]}  Nf6 {[%clk 0:03:00]} 2. Nf3 {[%clk 0:03:00]}  c5 {[%clk 0:03:00]} 3. c3 {[%clk 0:02:58]}  e6 {[%clk 0:02:56]} 4. Bf4 {[%clk 0:02:55]}  b6 {[%clk 0:02:37]} 5. e3 {[%clk 0:02:54]}  Bb7 {[%clk 0:02:37]} 6. Nbd2 {[%clk 0:02:53]}  d6 {[%clk 0:02:35]} 7. Nc4 {[%clk 0:02:47]}  Qc7 {[%clk 0:02:30]} 8. dxc5 {[%clk 0:02:44]}  Qxc5 {[%clk 0:02:07]} 9. Bxd6 {[%clk 0:02:29]}  Qd5 {[%clk 0:01:52]} 10. Bxf8 {[%clk 0:02:22]}  Kxf8 {[%clk 0:01:47]} 11. Qb3 {[%clk 0:02:13]}  Nbd7 {[%clk 0:01:35]} 12. Rd1 {[%clk 0:02:05]}  Nc5 {[%clk 0:01:21]} 13. Qa3 {[%clk 0:01:41]}  Qh5 {[%clk 0:01:19]} 14. Be2 {[%clk 0:01:34]}  g6 {[%clk 0:01:19]} 15. Nd6 {[%clk 0:01:07]}  Bc6 {[%clk 0:01:11]} 16. b4 {[%clk 0:00:57]}  Nce4 {[%clk 0:01:06]} 17. b5 {[%clk 0:00:53]}  Kg7 {[%clk 0:00:30]} 18. bxc6 {[%clk 0:00:49]}  Nxd6 {[%clk 0:00:29]} 19. Qxd6 {[%clk 0:00:45]}  Rhd8 {[%clk 0:00:28]} 20. Qe5 {[%clk 0:00:42]}  Qg4 {[%clk 0:00:25]} 21. O-O {[%clk 0:00:36]}  Qa4 {[%clk 0:00:17]} 22. c7 {[%clk 0:00:24]}  Rdc8 {[%clk 0:00:18]} 23. Ng5 {[%clk 0:00:10]}  Qc6 {[%clk 0:00:13]} 24. Bf3 {[%clk 0:00:08]}  Qe8 {[%clk 0:00:05]} 25. Bxa8 {[%clk 0:00:08]}  Rxa8 {[%clk 0:00:06]} 26. h3 {[%clk 0:00:07]}  Qe7 {[%clk 0:00:03]} 27. Ne4 {[%clk 0:00:07]}  Rc8 {[%clk 0:00:02]} 28. Nxf6 {[%clk 0:00:07]}  Qxf6 {[%clk 0:00:03]} 29. Qxf6+ {[%clk 0:00:08]}  Kxf6 {[%clk 0:00:04]} 30. Rd7 {[%clk 0:00:09]}  e5 {[%clk 0:00:04]} 31. Rfd1 {[%clk 0:00:09]}  Ke6 {[%clk 0:00:05]} 32. R1d6+ {[%clk 0:00:09]}  Kf5 {[%clk 0:00:06]} 33. f3 {[%clk 0:00:10]}  e4 {[%clk 0:00:05]} 34. f4 {[%clk 0:00:10]}  h5 {[%clk 0:00:05]} 35. Rxf7# {[%clk 0:00:10]} 1-0


[Site "https://www.chess.com"]

[Event "Titled Tuesday Blitz December 06 Late 2022"]
[White "Papp, Levente"]
[Black "Karas, Marek"]
[WhiteFideId "751243"]
[BlackFideId "14928558"]
[WhiteElo "2380"]
[BlackElo "2247"]
[Result "1/2-1/2"]
[Round "03"]
[TimeControl "180+1"]
[Date "2022.12.07"]
[WhiteClock "0:00:03"]
[BlackClock "0:00:03"]

1. Nc3 {[%clk 0:03:00]}  e6 {[%clk 0:02:54]} 2. e4 {[%clk 0:03:00]}  d5 {[%clk 0:02:54]} 3. Nf3 {[%clk 0:02:58]}  dxe4 {[%clk 0:02:53]} 4. Nxe4 {[%clk 0:02:58]}  Nd7 {[%clk 0:02:54]} 5. d4 {[%clk 0:02:54]}  Ngf6 {[%clk 0:02:54]} 6. Ng3 {[%clk 0:02:54]}  Be7 {[%clk 0:02:50]} 7. Bd3 {[%clk 0:02:53]}  O-O {[%clk 0:02:49]} 8. O-O {[%clk 0:02:52]}  b6 {[%clk 0:02:50]} 9. Qe2 {[%clk 0:02:50]}  Bb7 {[%clk 0:02:50]} 10. Rd1 {[%clk 0:02:50]}  Qc8 {[%clk 0:02:45]} 11. Nf5 {[%clk 0:02:45]}  exf5 {[%clk 0:02:31]} 12. Qxe7 {[%clk 0:02:44]}  Bxf3 {[%clk 0:02:26]} 13. gxf3 {[%clk 0:02:45]}  Re8 {[%clk 0:02:23]} 14. Qa3 {[%clk 0:02:37]}  Nf8 {[%clk 0:02:19]} 15. Bg5 {[%clk 0:02:26]}  Qe6 {[%clk 0:02:16]} 16. c4 {[%clk 0:02:13]}  h6 {[%clk 0:02:09]} 17. Bd2 {[%clk 0:01:56]}  a5 {[%clk 0:01:39]} 18. Re1 {[%clk 0:01:49]}  Qd7 {[%clk 0:01:37]} 19. d5 {[%clk 0:01:47]}  Ng6 {[%clk 0:01:37]} 20. Qc3 {[%clk 0:01:39]}  Nh4 {[%clk 0:01:36]} 21. Bf1 {[%clk 0:01:29]}  f4 {[%clk 0:01:26]} 22. Qd3 {[%clk 0:01:05]}  Nh5 {[%clk 0:01:20]} 23. Kh1 {[%clk 0:00:47]}  Rxe1 {[%clk 0:01:18]} 24. Rxe1 {[%clk 0:00:47]}  Qd8 {[%clk 0:01:14]} 25. Bh3 {[%clk 0:00:30]}  Qg5 {[%clk 0:01:07]} 26. Rg1 {[%clk 0:00:30]}  Qe7 {[%clk 0:00:57]} 27. Bg4 {[%clk 0:00:29]}  Nf6 {[%clk 0:00:48]} 28. Bxf4 {[%clk 0:00:30]}  Nxg4 {[%clk 0:00:43]} 29. Rxg4 {[%clk 0:00:29]}  Qe1+ {[%clk 0:00:30]} 30. Rg1 {[%clk 0:00:28]}  Qxf2 {[%clk 0:00:28]} 31. Bg3 {[%clk 0:00:09]}  Qxf3+ {[%clk 0:00:28]} 32. Qxf3 {[%clk 0:00:10]}  Nxf3 {[%clk 0:00:28]} 33. Rf1 {[%clk 0:00:07]}  Nd2 {[%clk 0:00:25]} 34. Rf4 {[%clk 0:00:07]}  Rc8 {[%clk 0:00:15]} 35. Rd4 {[%clk 0:00:05]}  Nf3 {[%clk 0:00:14]} 36. Rd3 {[%clk 0:00:05]}  Ng5 {[%clk 0:00:12]} 37. Re3 {[%clk 0:00:05]}  Kf8 {[%clk 0:00:10]} 38. b4 {[%clk 0:00:05]}  axb4 {[%clk 0:00:10]} 39. Kg2 {[%clk 0:00:03]}  Nh7 {[%clk 0:00:06]} 40. Rb3 {[%clk 0:00:03]}  Nf6 {[%clk 0:00:06]} 41. Rxb4 {[%clk 0:00:03]}  Nd7 {[%clk 0:00:06]} 42. d6 {[%clk 0:00:03]}  cxd6 {[%clk 0:00:06]} 43. Bxd6+ {[%clk 0:00:04]}  Ke8 {[%clk 0:00:06]} 44. Bf4 {[%clk 0:00:03]}  Ra8 {[%clk 0:00:06]} 45. a4 {[%clk 0:00:03]}  Ra5 {[%clk 0:00:06]} 46. Bc7 {[%clk 0:00:03]}  Rg5+ {[%clk 0:00:05]} 47. Kf3 {[%clk 0:00:03]}  Ra5 {[%clk 0:00:04]} 48. Bxb6 {[%clk 0:00:03]}  Nxb6 {[%clk 0:00:05]} 49. Rxb6 {[%clk 0:00:03]}  Rxa4 {[%clk 0:00:06]} 50. Rc6 {[%clk 0:00:03]}  Kd7 {[%clk 0:00:05]} 51. Rc5 {[%clk 0:00:03]}  Ra2 {[%clk 0:00:05]} 52. h4 {[%clk 0:00:03]}  Rc2 {[%clk 0:00:05]} 53. Kg4 {[%clk 0:00:03]}  Ke6 {[%clk 0:00:05]} 54. Rc6+ {[%clk 0:00:03]}  Ke7 {[%clk 0:00:04]} 55. Rc7+ {[%clk 0:00:03]}  Kf6 {[%clk 0:00:04]} 56. Rc6+ {[%clk 0:00:04]}  Ke5 {[%clk 0:00:04]} 57. Rc7 {[%clk 0:00:03]}  f5+ {[%clk 0:00:04]} 58. Kh5 {[%clk 0:00:04]}  g5 {[%clk 0:00:03]} 59. hxg5 {[%clk 0:00:03]}  hxg5 {[%clk 0:00:03]} 60. Kxg5 {[%clk 0:00:03]}  Rg2+ {[%clk 0:00:04]} 61. Kh4 {[%clk 0:00:03]}  f4 {[%clk 0:00:04]} 62. c5 {[%clk 0:00:03]}  Ke4 {[%clk 0:00:02]} 63. Re7+ {[%clk 0:00:03]}  Kf3 {[%clk 0:00:03]} 64. c6 {[%clk 0:00:03]}  Rh2+ {[%clk 0:00:03]} 65. Kg5 {[%clk 0:00:03]}  Rc2 {[%clk 0:00:03]} 66. Rf7 {[%clk 0:00:02]}  Rc5+ {[%clk 0:00:03]} 67. Rf5 {[%clk 0:00:02]}  Rc4 {[%clk 0:00:02]} 68. c7 {[%clk 0:00:02]}  Kg3 {[%clk 0:00:02]} 69. Rxf4 {[%clk 0:00:01]}  Rc5+ {[%clk 0:00:02]} 70. Rf5 {[%clk 0:00:01]}  Rxc7 {[%clk 0:00:02]} 71. Kf6 {[%clk 0:00:02]}  Rc6+ {[%clk 0:00:03]} 72. Ke5 {[%clk 0:00:02]}  Rc5+ {[%clk 0:00:03]} 73. Ke6 {[%clk 0:00:03]}  Rxf5 {[%clk 0:00:03]} 74. Kxf5 {[%clk 0:00:03]} 1/2-1/2


[Site "https://www.chess.com"]

[Event "Titled Tuesday Blitz December 06 Late 2022"]
[White "Poliakova, Varvara"]
[Black "Osmonbekov, Talaibek"]
[WhiteFideId "13518313"]
[BlackFideId "2017253"]
[WhiteElo "2075"]
[BlackElo "2135"]
[Result "1-0"]
[Round "03"]
[TimeControl "180+1"]
[Date "2022.12.07"]
[WhiteClock "0:01:56"]
[BlackClock "0:00:35"]

1. e4 {[%clk 0:02:55]}  c5 {[%clk 0:02:59]} 2. Nc3 {[%clk 0:02:54]}  a6 {[%clk 0:02:58]} 3. d3 {[%clk 0:02:55]}  b5 {[%clk 0:02:58]} 4. g3 {[%clk 0:02:55]}  Bb7 {[%clk 0:02:58]} 5. Bg2 {[%clk 0:02:55]}  e6 {[%clk 0:02:58]} 6. f4 {[%clk 0:02:54]}  f5 {[%clk 0:02:54]} 7. Nf3 {[%clk 0:02:51]}  b4 {[%clk 0:02:46]} 8. Ne2 {[%clk 0:02:41]}  fxe4 {[%clk 0:02:45]} 9. Ng5 {[%clk 0:02:41]}  Nf6 {[%clk 0:02:39]} 10. Nxe4 {[%clk 0:02:40]}  Nxe4 {[%clk 0:02:37]} 11. dxe4 {[%clk 0:02:41]}  Be7 {[%clk 0:02:30]} 12. O-O {[%clk 0:02:41]}  O-O {[%clk 0:02:30]} 13. Be3 {[%clk 0:02:38]}  d5 {[%clk 0:02:04]} 14. exd5 {[%clk 0:02:27]}  exd5 {[%clk 0:02:04]} 15. f5 {[%clk 0:02:25]}  d4 {[%clk 0:01:53]} 16. Bxb7 {[%clk 0:02:23]}  Ra7 {[%clk 0:01:53]} 17. Bg2 {[%clk 0:02:19]}  dxe3 {[%clk 0:01:52]} 18. Nf4 {[%clk 0:02:17]}  Rxf5 {[%clk 0:01:41]} 19. Qg4 {[%clk 0:02:14]}  Rg5 {[%clk 0:01:20]} 20. Qe6+ {[%clk 0:02:10]}  Kh8 {[%clk 0:01:20]} 21. Rad1 {[%clk 0:02:05]}  Rd7 {[%clk 0:01:17]} 22. Rxd7 {[%clk 0:02:04]}  Qxd7 {[%clk 0:01:16]} 23. Qxe3 {[%clk 0:02:04]}  Nc6 {[%clk 0:01:10]} 24. Bxc6 {[%clk 0:02:01]}  Qxc6 {[%clk 0:01:07]} 25. Qxe7 {[%clk 0:02:01]}  h6 {[%clk 0:01:07]} 26. Re1 {[%clk 0:02:00]}  Qb6 {[%clk 0:01:00]} 27. Qe8+ {[%clk 0:02:00]}  Kh7 {[%clk 0:01:00]} 28. Qe4+ {[%clk 0:02:01]}  Kh8 {[%clk 0:01:00]} 29. Ne6 {[%clk 0:01:56]}  c4+ {[%clk 0:00:57]} 30. Kg2 {[%clk 0:01:54]}  Ra5 {[%clk 0:00:41]} 31. Qa8+ {[%clk 0:01:54]}  Kh7 {[%clk 0:00:40]} 32. Nf8+ {[%clk 0:01:55]}  Kg8 {[%clk 0:00:35]} 33. Nd7+ {[%clk 0:01:56]} 1-0


[Site "https://www.chess.com"]

[Event "Titled Tuesday Blitz December 06 Late 2022"]
[White "Pultinevicius, Paulius"]
[Black "Estrada Nieto, Julian"]
[WhiteFideId "12809390"]
[BlackFideId "5101018"]
[WhiteElo "2486"]
[BlackElo "2195"]
[Result "1-0"]
[Round "03"]
[TimeControl "180+1"]
[Date "2022.12.07"]
[WhiteClock "0:00:23"]
[BlackClock "0:00:04"]

1. b3 {[%clk 0:03:00]}  d5 {[%clk 0:02:58]} 2. Bb2 {[%clk 0:03:01]}  Nf6 {[%clk 0:02:59]} 3. e3 {[%clk 0:03:00]}  Bg4 {[%clk 0:02:59]} 4. Be2 {[%clk 0:02:54]}  Bxe2 {[%clk 0:02:59]} 5. Qxe2 {[%clk 0:02:53]}  Nbd7 {[%clk 0:02:57]} 6. Nf3 {[%clk 0:02:52]}  e6 {[%clk 0:02:57]} 7. c4 {[%clk 0:02:50]}  c6 {[%clk 0:02:52]} 8. a3 {[%clk 0:02:47]}  Bd6 {[%clk 0:02:51]} 9. d4 {[%clk 0:02:44]}  O-O {[%clk 0:02:49]} 10. Nbd2 {[%clk 0:02:43]}  a5 {[%clk 0:02:35]} 11. Ne5 {[%clk 0:02:39]}  Qb8 {[%clk 0:02:29]} 12. f4 {[%clk 0:02:36]}  Ra6 {[%clk 0:02:08]} 13. O-O-O {[%clk 0:02:32]}  b5 {[%clk 0:02:05]} 14. c5 {[%clk 0:02:31]}  Be7 {[%clk 0:01:41]} 15. g4 {[%clk 0:02:30]}  Rd8 {[%clk 0:01:32]} 16. h4 {[%clk 0:02:30]}  Qb7 {[%clk 0:01:23]} 17. h5 {[%clk 0:02:30]}  Nxe5 {[%clk 0:01:17]} 18. fxe5 {[%clk 0:02:18]}  Nd7 {[%clk 0:01:17]} 19. Nf3 {[%clk 0:02:15]}  f6 {[%clk 0:01:00]} 20. exf6 {[%clk 0:02:09]}  Nxf6 {[%clk 0:01:00]} 21. Ng5 {[%clk 0:02:00]}  Qd7 {[%clk 0:00:54]} 22. h6 {[%clk 0:01:44]}  g6 {[%clk 0:00:54]} 23. Rdf1 {[%clk 0:01:44]}  Rf8 {[%clk 0:00:52]} 24. Kb1 {[%clk 0:01:34]}  Raa8 {[%clk 0:00:52]} 25. Bc1 {[%clk 0:01:31]}  Ne4 {[%clk 0:00:50]} 26. Nxe4 {[%clk 0:01:21]}  dxe4 {[%clk 0:00:49]} 27. Rxf8+ {[%clk 0:01:13]}  Rxf8 {[%clk 0:00:49]} 28. Rf1 {[%clk 0:01:12]}  Qd5 {[%clk 0:00:49]} 29. Kc2 {[%clk 0:01:08]}  Rf3 {[%clk 0:00:44]} 30. Bb2 {[%clk 0:00:54]}  a4 {[%clk 0:00:44]} 31. bxa4 {[%clk 0:00:53]}  bxa4 {[%clk 0:00:43]} 32. Kb1 {[%clk 0:00:52]}  Bg5 {[%clk 0:00:36]} 33. Qa6 {[%clk 0:00:43]}  Rxf1+ {[%clk 0:00:28]} 34. Qxf1 {[%clk 0:00:41]}  Qb3 {[%clk 0:00:22]} 35. Qa6 {[%clk 0:00:30]}  Qd3+ {[%clk 0:00:17]} 36. Qxd3 {[%clk 0:00:27]}  exd3 {[%clk 0:00:17]} 37. Bc1 {[%clk 0:00:26]}  Bxh6 {[%clk 0:00:17]} 38. Kb2 {[%clk 0:00:26]}  Bg7 {[%clk 0:00:12]} 39. Kc3 {[%clk 0:00:23]}  h5 {[%clk 0:00:12]} 40. gxh5 {[%clk 0:00:24]}  gxh5 {[%clk 0:00:13]} 41. Kxd3 {[%clk 0:00:25]}  h4 {[%clk 0:00:11]} 42. Ke2 {[%clk 0:00:24]}  e5 {[%clk 0:00:10]} 43. d5 {[%clk 0:00:23]}  cxd5 {[%clk 0:00:09]} 44. c6 {[%clk 0:00:23]}  d4 {[%clk 0:00:03]} 45. c7 {[%clk 0:00:24]}  d3+ {[%clk 0:00:04]} 46. Kxd3 {[%clk 0:00:23]}  e4+ {[%clk 0:00:04]} 47. Kxe4 {[%clk 0:00:23]} 1-0


[Site "https://www.chess.com"]

[Event "Titled Tuesday Blitz December 06 Late 2022"]
[White "Rastbod, Ali"]
[Black "Taboas Rodriguez, Daniel"]
[WhiteFideId "12567477"]
[BlackFideId "2208466"]
[WhiteElo "2223"]
[BlackElo "2329"]
[Result "0-1"]
[Round "03"]
[TimeControl "180+1"]
[Date "2022.12.07"]
[WhiteClock "0:00:05"]
[BlackClock "0:00:14"]

1. e4 {[%clk 0:02:53]}  e5 {[%clk 0:02:53]} 2. Nf3 {[%clk 0:02:52]}  Nc6 {[%clk 0:02:52]} 3. Bc4 {[%clk 0:02:50]}  Nf6 {[%clk 0:02:51]} 4. d3 {[%clk 0:02:42]}  Bc5 {[%clk 0:02:46]} 5. c3 {[%clk 0:02:40]}  d6 {[%clk 0:02:46]} 6. O-O {[%clk 0:02:28]}  a6 {[%clk 0:02:46]} 7. Bb3 {[%clk 0:02:28]}  Ba7 {[%clk 0:02:42]} 8. Nbd2 {[%clk 0:02:27]}  O-O {[%clk 0:02:41]} 9. h3 {[%clk 0:02:26]}  Be6 {[%clk 0:02:40]} 10. Re1 {[%clk 0:01:54]}  Qd7 {[%clk 0:02:34]} 11. Nf1 {[%clk 0:01:45]}  Rfe8 {[%clk 0:02:19]} 12. Ng3 {[%clk 0:01:35]}  d5 {[%clk 0:02:14]} 13. Ng5 {[%clk 0:01:33]}  Rad8 {[%clk 0:02:00]} 14. Nxe6 {[%clk 0:01:31]}  fxe6 {[%clk 0:01:59]} 15. Qe2 {[%clk 0:01:23]}  Rf8 {[%clk 0:01:44]} 16. Be3 {[%clk 0:01:08]}  d4 {[%clk 0:01:40]} 17. Bg5 {[%clk 0:01:06]}  h6 {[%clk 0:01:35]} 18. Bxf6 {[%clk 0:00:59]}  Rxf6 {[%clk 0:01:36]} 19. c4 {[%clk 0:00:53]}  Bc5 {[%clk 0:01:34]} 20. a3 {[%clk 0:00:51]}  Rdf8 {[%clk 0:01:34]} 21. Rf1 {[%clk 0:00:49]}  Ne7 {[%clk 0:01:17]} 22. Nh5 {[%clk 0:00:45]}  R6f7 {[%clk 0:01:15]} 23. Bd1 {[%clk 0:00:43]}  Ng6 {[%clk 0:01:14]} 24. b4 {[%clk 0:00:43]}  Be7 {[%clk 0:01:12]} 25. g3 {[%clk 0:00:43]}  Bg5 {[%clk 0:00:54]} 26. c5 {[%clk 0:00:40]}  Be3 {[%clk 0:00:53]} 27. Ra2 {[%clk 0:00:22]}  Rxf2 {[%clk 0:00:35]} 28. Rxf2 {[%clk 0:00:23]}  Rxf2 {[%clk 0:00:35]} 29. Qxf2 {[%clk 0:00:24]}  Qe7 {[%clk 0:00:30]} 30. Kg2 {[%clk 0:00:19]}  Bxf2 {[%clk 0:00:30]} 31. Rxf2 {[%clk 0:00:20]}  Qg5 {[%clk 0:00:30]} 32. Bg4 {[%clk 0:00:16]}  Nf8 {[%clk 0:00:23]} 33. Be2 {[%clk 0:00:05]}  Qc1 {[%clk 0:00:22]} 34. Bg4 {[%clk 0:00:03]}  Qxa3 {[%clk 0:00:22]} 35. h4 {[%clk 0:00:02]}  Qxb4 {[%clk 0:00:22]} 36. Bh3 {[%clk 0:00:02]}  Qxc5 {[%clk 0:00:22]} 37. g4 {[%clk 0:00:03]}  Qc3 {[%clk 0:00:22]} 38. Ng3 {[%clk 0:00:02]}  Qxd3 {[%clk 0:00:22]} 39. g5 {[%clk 0:00:03]}  hxg5 {[%clk 0:00:21]} 40. hxg5 {[%clk 0:00:04]}  a5 {[%clk 0:00:21]} 41. g6 {[%clk 0:00:05]}  Qe3 {[%clk 0:00:18]} 42. Rf3 {[%clk 0:00:04]}  Qg5 {[%clk 0:00:19]} 43. Kh2 {[%clk 0:00:04]}  Qxg6 {[%clk 0:00:19]} 44. Bg2 {[%clk 0:00:03]}  Qh6+ {[%clk 0:00:18]} 45. Kg1 {[%clk 0:00:03]}  Qg5 {[%clk 0:00:19]} 46. Nf1 {[%clk 0:00:03]}  Qg4 {[%clk 0:00:17]} 47. Rg3 {[%clk 0:00:04]}  Qe2 {[%clk 0:00:17]} 48. Bf3 {[%clk 0:00:03]}  Qc2 {[%clk 0:00:16]} 49. Rg2 {[%clk 0:00:02]}  Qc4 {[%clk 0:00:16]} 50. Nd2 {[%clk 0:00:01]}  Qc3 {[%clk 0:00:15]} 51. Rf2 {[%clk 0:00:01]}  Qe3 {[%clk 0:00:16]} 52. Bg4 {[%clk 0:00:02]}  c5 {[%clk 0:00:16]} 53. Kg2 {[%clk 0:00:02]}  b5 {[%clk 0:00:15]} 54. Nf1 {[%clk 0:00:02]}  Qg5 {[%clk 0:00:15]} 55. Kg3 {[%clk 0:00:03]}  c4 {[%clk 0:00:15]} 56. Nh2 {[%clk 0:00:04]}  d3 {[%clk 0:00:14]} 57. Nf3 {[%clk 0:00:05]}  Qf4+ {[%clk 0:00:14]} 58. Kh3 {[%clk 0:00:05]}  Qe3 {[%clk 0:00:14]} 59. Rf1 {[%clk 0:00:05]}  c3 {[%clk 0:00:14]} 60. Re1 {[%clk 0:00:05]}  Qf4 {[%clk 0:00:15]} 61. Rd1 {[%clk 0:00:04]}  d2 {[%clk 0:00:15]} 62. Rb1 {[%clk 0:00:04]}  c2 {[%clk 0:00:15]} 63. Nxd2 {[%clk 0:00:05]}  Qxd2 {[%clk 0:00:14]} 0-1


[Site "https://www.chess.com"]